[Event "Titled Tuesday Blitz May 16 Late 2023"]
[White "Rustemov, Alexander"]
[Black "Manukyan, Sargis A."]
[WhiteFideId "4119002"]
[BlackFideId "13303970"]
[WhiteElo "2983"]
[BlackElo "2187"]
[Result "1-0"]
[Round "02"]
[TimeControl "180+2"]
[Date "2023.05.16"]
[WhiteClock "0:00:16"]
[BlackClock "0:00:01"]

1. d4 {[%clk 0:02:56]}  d5 {[%clk 0:03:00]} 2. c4 {[%clk 0:02:54]}  e6 {[%clk 0:03:00]} 3. Nc3 {[%clk 0:02:53]}  Nf6 {[%clk 0:03:00]} 4. cxd5 {[%clk 0:02:53]}  Nxd5 {[%clk 0:03:01]} 5. Nf3 {[%clk 0:02:51]}  Nxc3 {[%clk 0:02:57]} 6. bxc3 {[%clk 0:02:50]}  c5 {[%clk 0:02:58]} 7. g3 {[%clk 0:02:49]}  cxd4 {[%clk 0:02:58]} 8. Qxd4 {[%clk 0:02:48]}  Qxd4 {[%clk 0:02:57]} 9. Nxd4 {[%clk 0:02:47]}  a6 {[%clk 0:02:46]} 10. Rb1 {[%clk 0:02:35]}  e5 {[%clk 0:02:45]} 11. Nb3 {[%clk 0:02:23]}  Bf5 {[%clk 0:02:41]} 12. Rb2 {[%clk 0:02:15]}  Ba3 {[%clk 0:02:17]} 13. Rd2 {[%clk 0:02:14]}  Bxc1 {[%clk 0:02:18]} 14. Nxc1 {[%clk 0:02:15]}  Nc6 {[%clk 0:02:18]} 15. Nb3 {[%clk 0:02:12]}  Rd8 {[%clk 0:02:14]} 16. Bg2 {[%clk 0:02:11]}  Rxd2 {[%clk 0:02:13]} 17. Kxd2 {[%clk 0:02:12]}  Kd7 {[%clk 0:01:55]} 18. Ke3 {[%clk 0:02:03]}  Kc7 {[%clk 0:01:55]} 19. Rd1 {[%clk 0:02:02]}  Bc2 {[%clk 0:01:51]} 20. Rd5 {[%clk 0:02:00]}  Bxb3 {[%clk 0:01:44]} 21. axb3 {[%clk 0:02:01]}  f6 {[%clk 0:01:43]} 22. Rc5 {[%clk 0:01:55]}  Rd8 {[%clk 0:01:40]} 23. Bxc6 {[%clk 0:01:51]}  bxc6 {[%clk 0:01:40]} 24. h4 {[%clk 0:01:43]}  Rd1 {[%clk 0:01:24]} 25. b4 {[%clk 0:01:43]}  Kb6 {[%clk 0:01:15]} 26. h5 {[%clk 0:01:42]}  Rh1 {[%clk 0:01:04]} 27. g4 {[%clk 0:01:41]}  Rg1 {[%clk 0:01:04]} 28. f3 {[%clk 0:01:41]}  Rd1 {[%clk 0:01:05]} 29. Ra5 {[%clk 0:01:34]}  Rd5 {[%clk 0:01:00]} 30. Ra1 {[%clk 0:01:29]}  c5 {[%clk 0:00:59]} 31. Ke4 {[%clk 0:01:19]}  Rd2 {[%clk 0:00:58]} 32. bxc5+ {[%clk 0:01:19]}  Kxc5 {[%clk 0:00:50]} 33. Rxa6 {[%clk 0:01:18]}  Rxe2+ {[%clk 0:00:50]} 34. Kd3 {[%clk 0:01:17]}  Rf2 {[%clk 0:00:41]} 35. Ke3 {[%clk 0:01:17]}  Rc2 {[%clk 0:00:41]} 36. Ra7 {[%clk 0:01:12]}  Rxc3+ {[%clk 0:00:38]} 37. Ke4 {[%clk 0:01:11]}  g6 {[%clk 0:00:26]} 38. Rc7+ {[%clk 0:00:57]}  Kb4 {[%clk 0:00:26]} 39. Rxh7 {[%clk 0:00:58]}  f5+ {[%clk 0:00:20]} 40. Kxe5 {[%clk 0:00:53]}  gxh5 {[%clk 0:00:10]} 41. gxf5 {[%clk 0:00:50]}  Rxf3 {[%clk 0:00:09]} 42. Rxh5 {[%clk 0:00:46]}  Kc5 {[%clk 0:00:10]} 43. Rh6 {[%clk 0:00:46]}  Re3+ {[%clk 0:00:09]} 44. Kf4 {[%clk 0:00:45]}  Re1 {[%clk 0:00:10]} 45. Ra6 {[%clk 0:00:44]}  Kd5 {[%clk 0:00:09]} 46. Kg5 {[%clk 0:00:41]}  Rg1+ {[%clk 0:00:09]} 47. Kf6 {[%clk 0:00:41]}  Rg2 {[%clk 0:00:08]} 48. Kf7 {[%clk 0:00:34]}  Ke5 {[%clk 0:00:08]} 49. f6 {[%clk 0:00:33]}  Rf2 {[%clk 0:00:07]} 50. Ra5+ {[%clk 0:00:33]}  Kd6 {[%clk 0:00:07]} 51. Kg7 {[%clk 0:00:27]}  Ke6 {[%clk 0:00:06]} 52. Ra6+ {[%clk 0:00:27]}  Kd7 {[%clk 0:00:05]} 53. f7 {[%clk 0:00:26]}  Rg2+ {[%clk 0:00:03]} 54. Kf8 {[%clk 0:00:26]}  Rg3 {[%clk 0:00:02]} 55. Ra1 {[%clk 0:00:24]}  Kd8 {[%clk 0:00:03]} 56. Rd1+ {[%clk 0:00:23]}  Kc7 {[%clk 0:00:04]} 57. Rd5 {[%clk 0:00:23]}  Kc6 {[%clk 0:00:04]} 58. Rf5 {[%clk 0:00:21]}  Kd6 {[%clk 0:00:05]} 59. Ke8 {[%clk 0:00:19]}  Re3+ {[%clk 0:00:04]} 60. Kd8 {[%clk 0:00:19]}  Ke6 {[%clk 0:00:03]} 61. f8=Q {[%clk 0:00:19]}  Rd3+ {[%clk 0:00:04]} 62. Kc7 {[%clk 0:00:18]}  Rd8 {[%clk 0:00:05]} 63. Qxd8 {[%clk 0:00:17]}  Kxf5 {[%clk 0:00:01]} 64. Qe7 {[%clk 0:00:16]} 1-0


[Site "https://www.chess.com"]

[Event "Titled Tuesday Blitz May 16 Late 2023"]
[White "Karimov, Alisher"]
[Black "Rasulov, Vugar"]
[WhiteFideId "14700280"]
[BlackFideId "13402390"]
[WhiteElo "2186"]
[BlackElo "2509"]
[Result "1/2-1/2"]
[Round "02"]
[TimeControl "180+2"]
[Date "2023.05.16"]
[WhiteClock "0:00:14"]
[BlackClock "0:00:11"]

1. d4 {[%clk 0:03:00]}  Nf6 {[%clk 0:03:00]} 2. Nc3 {[%clk 0:03:00]}  e6 {[%clk 0:02:58]} 3. e4 {[%clk 0:02:57]}  d5 {[%clk 0:02:58]} 4. exd5 {[%clk 0:02:58]}  exd5 {[%clk 0:02:58]} 5. Bd3 {[%clk 0:02:58]}  Bd6 {[%clk 0:02:56]} 6. Nf3 {[%clk 0:02:58]}  O-O {[%clk 0:02:55]} 7. O-O {[%clk 0:02:58]}  h6 {[%clk 0:02:55]} 8. Ne5 {[%clk 0:02:56]}  c5 {[%clk 0:02:54]} 9. Re1 {[%clk 0:02:43]}  cxd4 {[%clk 0:02:45]} 10. Nb5 {[%clk 0:02:43]}  Bxe5 {[%clk 0:02:45]} 11. Rxe5 {[%clk 0:02:43]}  Nc6 {[%clk 0:02:46]} 12. Re1 {[%clk 0:02:43]}  a6 {[%clk 0:02:47]} 13. Na3 {[%clk 0:02:43]}  Bg4 {[%clk 0:02:44]} 14. Qd2 {[%clk 0:02:37]}  Re8 {[%clk 0:02:43]} 15. h3 {[%clk 0:02:31]}  Bh5 {[%clk 0:02:41]} 16. b3 {[%clk 0:02:15]}  Ne4 {[%clk 0:02:34]} 17. Qf4 {[%clk 0:02:08]}  g5 {[%clk 0:02:33]} 18. Qh2 {[%clk 0:02:00]}  Qf6 {[%clk 0:02:32]} 19. f3 {[%clk 0:01:48]}  Nc5 {[%clk 0:02:33]} 20. Bb2 {[%clk 0:01:45]}  Nxd3 {[%clk 0:02:26]} 21. cxd3 {[%clk 0:01:45]}  Bg6 {[%clk 0:02:26]} 22. Qc7 {[%clk 0:01:38]}  Nb4 {[%clk 0:02:22]} 23. Rxe8+ {[%clk 0:01:18]}  Rxe8 {[%clk 0:02:23]} 24. Nc2 {[%clk 0:01:16]}  Nxc2 {[%clk 0:02:09]} 25. Qxc2 {[%clk 0:01:17]}  Re3 {[%clk 0:02:09]} 26. Rd1 {[%clk 0:01:15]}  Qe5 {[%clk 0:01:47]} 27. Qc5 {[%clk 0:00:51]}  Re1+ {[%clk 0:01:06]} 28. Rxe1 {[%clk 0:00:50]}  Qxe1+ {[%clk 0:01:07]} 29. Kh2 {[%clk 0:00:51]}  Qe5+ {[%clk 0:01:07]} 30. Kh1 {[%clk 0:00:51]}  Kh7 {[%clk 0:00:29]} 31. Bxd4 {[%clk 0:00:39]}  Qf4 {[%clk 0:00:29]} 32. Qxd5 {[%clk 0:00:27]}  Bxd3 {[%clk 0:00:27]} 33. Qd8 {[%clk 0:00:16]}  Qc1+ {[%clk 0:00:24]} 34. Kh2 {[%clk 0:00:16]}  Qf4+ {[%clk 0:00:25]} 35. Kh1 {[%clk 0:00:16]}  Qc1+ {[%clk 0:00:11]} 36. Kh2 {[%clk 0:00:16]}  Qf4+ {[%clk 0:00:11]} 37. Kh1 {[%clk 0:00:14]} 1/2-1/2


[Site "https://www.chess.com"]

[Event "Titled Tuesday Blitz May 16 Late 2023"]
[White "Ibarra Jerez, Jose Carlos"]
[Black "cryptoguru02"]
[WhiteFideId "2226332"]
[WhiteElo "2638"]
[BlackElo "2617"]
[Result "1-0"]
[Round "02"]
[TimeControl "180+2"]
[Date "2023.05.16"]
[WhiteClock "0:01:16"]
[BlackClock "0:00:21"]

1. e4 {[%clk 0:02:59]}  e5 {[%clk 0:02:59]} 2. Nf3 {[%clk 0:02:58]}  Nc6 {[%clk 0:02:59]} 3. Nc3 {[%clk 0:02:58]}  Nf6 {[%clk 0:02:59]} 4. h3 {[%clk 0:02:58]}  Bb4 {[%clk 0:02:50]} 5. Nd5 {[%clk 0:02:58]}  Bc5 {[%clk 0:02:47]} 6. c3 {[%clk 0:02:56]}  d6 {[%clk 0:02:44]} 7. d4 {[%clk 0:02:42]}  Bb6 {[%clk 0:02:43]} 8. Bg5 {[%clk 0:02:40]}  exd4 {[%clk 0:02:39]} 9. Bxf6 {[%clk 0:02:21]}  gxf6 {[%clk 0:02:37]} 10. cxd4 {[%clk 0:02:22]}  Ba5+ {[%clk 0:02:36]} 11. Nc3 {[%clk 0:02:22]}  f5 {[%clk 0:02:33]} 12. d5 {[%clk 0:02:15]}  fxe4 {[%clk 0:02:28]} 13. dxc6 {[%clk 0:02:08]}  exf3 {[%clk 0:02:09]} 14. Qxf3 {[%clk 0:02:02]}  bxc6 {[%clk 0:02:01]} 15. Bb5 {[%clk 0:01:40]}  Bxc3+ {[%clk 0:01:25]} 16. Qxc3 {[%clk 0:01:39]}  Qe7+ {[%clk 0:01:13]} 17. Kf1 {[%clk 0:01:28]}  O-O {[%clk 0:01:12]} 18. Re1 {[%clk 0:01:23]}  Be6 {[%clk 0:01:06]} 19. Bxc6 {[%clk 0:01:21]}  Rab8 {[%clk 0:00:21]} 20. Re3 {[%clk 0:01:16]} 1-0


[Site "https://www.chess.com"]

[Event "Titled Tuesday Blitz May 16 Late 2023"]
[White "Pichot, Alan"]
[Black "Eugene, Floryan"]
[WhiteFideId "110973"]
[BlackFideId "20694784"]
[WhiteElo "2573"]
[BlackElo "2369"]
[Result "1-0"]
[Round "02"]
[TimeControl "180+2"]
[Date "2023.05.16"]
[WhiteClock "0:00:54"]
[BlackClock "0:00:20"]

1. e4 {[%clk 0:02:55]}  d5 {[%clk 0:02:48]} 2. exd5 {[%clk 0:02:53]}  Nf6 {[%clk 0:02:48]} 3. d4 {[%clk 0:02:49]}  Nxd5 {[%clk 0:02:46]} 4. Nf3 {[%clk 0:02:49]}  g6 {[%clk 0:02:46]} 5. Bc4 {[%clk 0:02:43]}  Nb6 {[%clk 0:02:40]} 6. Bb3 {[%clk 0:02:42]}  Bg7 {[%clk 0:02:40]} 7. h3 {[%clk 0:02:42]}  O-O {[%clk 0:02:40]} 8. O-O {[%clk 0:02:41]}  Nc6 {[%clk 0:02:39]} 9. c3 {[%clk 0:02:42]}  e5 {[%clk 0:02:36]} 10. Bg5 {[%clk 0:02:40]}  Qe8 {[%clk 0:02:30]} 11. Re1 {[%clk 0:02:37]}  Be6 {[%clk 0:02:21]} 12. d5 {[%clk 0:02:07]}  Nxd5 {[%clk 0:01:42]} 13. Bxd5 {[%clk 0:02:06]}  Bd7 {[%clk 0:01:41]} 14. Nbd2 {[%clk 0:02:02]}  h6 {[%clk 0:01:40]} 15. Be3 {[%clk 0:02:02]}  Kh7 {[%clk 0:01:40]} 16. Ne4 {[%clk 0:01:59]}  f5 {[%clk 0:01:39]} 17. Nc5 {[%clk 0:01:59]}  Bc8 {[%clk 0:01:39]} 18. Qb3 {[%clk 0:01:53]}  Na5 {[%clk 0:01:28]} 19. Qb4 {[%clk 0:01:41]}  Nc6 {[%clk 0:01:27]} 20. Qh4 {[%clk 0:01:30]}  f4 {[%clk 0:01:22]} 21. Bxf4 {[%clk 0:01:28]}  Rxf4 {[%clk 0:00:37]} 22. Qxf4 {[%clk 0:01:26]}  Qd8 {[%clk 0:00:35]} 23. Qf7 {[%clk 0:01:12]}  Bf5 {[%clk 0:00:32]} 24. Rad1 {[%clk 0:01:04]}  Qc8 {[%clk 0:00:28]} 25. Be6 {[%clk 0:00:55]}  Nd8 {[%clk 0:00:20]} 26. Qg8# {[%clk 0:00:54]} 1-0


[Site "https://www.chess.com"]

[Event "Titled Tuesday Blitz May 16 Late 2023"]
[White "Babazada, Khazar"]
[Black "Spata, German"]
[WhiteFideId "13413554"]
[BlackFideId "113026"]
[WhiteElo "2351"]
[BlackElo "2260"]
[Result "1-0"]
[Round "02"]
[TimeControl "180+2"]
[Date "2023.05.16"]
[WhiteClock "0:00:21"]
[BlackClock "0:00:00"]

1. e4 {[%clk 0:02:53]}  e6 {[%clk 0:02:58]} 2. d4 {[%clk 0:02:51]}  d5 {[%clk 0:02:58]} 3. Nc3 {[%clk 0:02:49]}  dxe4 {[%clk 0:02:58]} 4. Nxe4 {[%clk 0:02:49]}  Bd7 {[%clk 0:02:58]} 5. Bd3 {[%clk 0:02:48]}  Bc6 {[%clk 0:02:58]} 6. Nf3 {[%clk 0:02:48]}  Nd7 {[%clk 0:02:58]} 7. Qe2 {[%clk 0:02:46]}  Ngf6 {[%clk 0:02:59]} 8. c3 {[%clk 0:02:42]}  Nxe4 {[%clk 0:02:58]} 9. Bxe4 {[%clk 0:02:43]}  Bxe4 {[%clk 0:02:59]} 10. Qxe4 {[%clk 0:02:43]}  c6 {[%clk 0:03:00]} 11. O-O {[%clk 0:02:44]}  Be7 {[%clk 0:02:59]} 12. a4 {[%clk 0:02:41]}  O-O {[%clk 0:02:58]} 13. a5 {[%clk 0:02:28]}  a6 {[%clk 0:02:57]} 14. Bf4 {[%clk 0:02:25]}  Nf6 {[%clk 0:02:56]} 15. Qe2 {[%clk 0:02:25]}  Qd5 {[%clk 0:02:53]} 16. Ne5 {[%clk 0:02:14]}  Qe4 {[%clk 0:02:45]} 17. Qxe4 {[%clk 0:02:14]}  Nxe4 {[%clk 0:02:45]} 18. Nc4 {[%clk 0:02:15]}  Rad8 {[%clk 0:02:36]} 19. f3 {[%clk 0:02:11]}  Nd6 {[%clk 0:02:35]} 20. Bxd6 {[%clk 0:02:04]}  Bxd6 {[%clk 0:02:35]} 21. Nxd6 {[%clk 0:02:04]}  Rxd6 {[%clk 0:02:35]} 22. Ra4 {[%clk 0:02:01]}  Rd5 {[%clk 0:02:32]} 23. Re1 {[%clk 0:02:00]}  Rb5 {[%clk 0:02:28]} 24. b4 {[%clk 0:01:59]}  Rd8 {[%clk 0:02:24]} 25. Ra2 {[%clk 0:01:57]}  Rbd5 {[%clk 0:02:19]} 26. Rae2 {[%clk 0:01:56]}  g6 {[%clk 0:02:12]} 27. Kf2 {[%clk 0:01:55]}  Kg7 {[%clk 0:02:12]} 28. f4 {[%clk 0:01:53]}  h5 {[%clk 0:02:10]} 29. Kf3 {[%clk 0:01:52]}  Kf6 {[%clk 0:02:08]} 30. g3 {[%clk 0:01:53]}  Rh8 {[%clk 0:02:00]} 31. h3 {[%clk 0:01:53]}  Rh7 {[%clk 0:01:58]} 32. Re5 {[%clk 0:01:53]}  Rh8 {[%clk 0:01:56]} 33. Ke4 {[%clk 0:01:53]}  Rdd8 {[%clk 0:01:49]} 34. Kd3 {[%clk 0:01:50]}  Rd5 {[%clk 0:01:47]} 35. Kc4 {[%clk 0:01:51]}  Rhd8 {[%clk 0:01:45]} 36. R1e3 {[%clk 0:01:47]}  R8d7 {[%clk 0:01:41]} 37. g4 {[%clk 0:01:46]}  hxg4 {[%clk 0:01:41]} 38. hxg4 {[%clk 0:01:47]}  Rd8 {[%clk 0:01:38]} 39. g5+ {[%clk 0:01:42]}  Ke7 {[%clk 0:01:31]} 40. Rh3 {[%clk 0:01:43]}  Kd6 {[%clk 0:01:11]} 41. Rh7 {[%clk 0:01:42]}  Rf8 {[%clk 0:01:11]} 42. Rg7 {[%clk 0:01:40]}  Rb5 {[%clk 0:01:08]} 43. Rc5 {[%clk 0:01:35]}  Rxc5+ {[%clk 0:01:03]} 44. bxc5+ {[%clk 0:01:35]}  Ke7 {[%clk 0:01:03]} 45. Rh7 {[%clk 0:01:34]}  Rd8 {[%clk 0:01:01]} 46. Kd3 {[%clk 0:01:34]}  Rf8 {[%clk 0:00:55]} 47. Ke4 {[%clk 0:01:34]}  Rd8 {[%clk 0:00:55]} 48. c4 {[%clk 0:01:34]}  Rc8 {[%clk 0:00:54]} 49. Ke5 {[%clk 0:01:34]}  Rd8 {[%clk 0:00:54]} 50. Rh1 {[%clk 0:01:33]}  Rc8 {[%clk 0:00:41]} 51. Rc1 {[%clk 0:01:21]}  Rd8 {[%clk 0:00:39]} 52. Rc2 {[%clk 0:01:22]}  Rd7 {[%clk 0:00:35]} 53. Rb2 {[%clk 0:01:19]}  Rc7 {[%clk 0:00:34]} 54. Rh2 {[%clk 0:01:10]}  Rc8 {[%clk 0:00:33]} 55. Rh7 {[%clk 0:01:08]}  Rd8 {[%clk 0:00:32]} 56. f5 {[%clk 0:01:07]}  exf5 {[%clk 0:00:27]} 57. d5 {[%clk 0:01:07]}  Rf8 {[%clk 0:00:12]} 58. Rg7 {[%clk 0:00:41]}  cxd5 {[%clk 0:00:10]} 59. cxd5 {[%clk 0:00:42]}  Rc8 {[%clk 0:00:08]} 60. d6+ {[%clk 0:00:40]}  Kf8 {[%clk 0:00:07]} 61. Kf6 {[%clk 0:00:33]}  Rxc5 {[%clk 0:00:05]} 62. Rxf7+ {[%clk 0:00:34]}  Ke8 {[%clk 0:00:06]} 63. Rxb7 {[%clk 0:00:34]}  Rc1 {[%clk 0:00:04]} 64. Kxg6 {[%clk 0:00:29]}  f4 {[%clk 0:00:04]} 65. Kf6 {[%clk 0:00:30]}  f3 {[%clk 0:00:05]} 66. Rb2 {[%clk 0:00:29]}  Kd7 {[%clk 0:00:04]} 67. Rd2 {[%clk 0:00:28]}  Re1 {[%clk 0:00:02]} 68. g6 {[%clk 0:00:22]}  Re2 {[%clk 0:00:02]} 69. Rd1 {[%clk 0:00:18]}  f2 {[%clk 0:00:03]} 70. Rf1 {[%clk 0:00:19]}  Re6+ {[%clk 0:00:02]} 71. Kf7 {[%clk 0:00:18]}  Kxd6 {[%clk 0:00:02]} 72. g7 {[%clk 0:00:18]}  Re7+ {[%clk 0:00:03]} 73. Kf8 {[%clk 0:00:19]}  Rxg7 {[%clk 0:00:03]} 74. Kxg7 {[%clk 0:00:19]}  Kc5 {[%clk 0:00:03]} 75. Rxf2 {[%clk 0:00:20]}  Kb5 {[%clk 0:00:00]} 76. Rf5+ {[%clk 0:00:21]} 1-0


[Site "https://www.chess.com"]

[Event "Titled Tuesday Blitz May 16 Late 2023"]
[White "Tarlabasi, Emirhan"]
[Black "Bortnyk, Mykola"]
[WhiteFideId "6350275"]
[BlackFideId "14120836"]
[WhiteElo "2200"]
[BlackElo "2582"]
[Result "0-1"]
[Round "02"]
[TimeControl "180+2"]
[Date "2023.05.16"]
[WhiteClock "0:00:00"]
[BlackClock "0:00:23"]

1. d4 {[%clk 0:03:00]}  Nf6 {[%clk 0:02:57]} 2. c4 {[%clk 0:03:01]}  e6 {[%clk 0:02:57]} 3. Nc3 {[%clk 0:03:00]}  Bb4 {[%clk 0:02:56]} 4. e3 {[%clk 0:03:00]}  O-O {[%clk 0:02:55]} 5. Nf3 {[%clk 0:03:00]}  d5 {[%clk 0:02:52]} 6. Bd3 {[%clk 0:02:54]}  Re8 {[%clk 0:02:45]} 7. O-O {[%clk 0:02:53]}  b6 {[%clk 0:02:42]} 8. cxd5 {[%clk 0:02:52]}  exd5 {[%clk 0:02:42]} 9. Ne5 {[%clk 0:02:50]}  c5 {[%clk 0:02:35]} 10. f4 {[%clk 0:02:46]}  Ba6 {[%clk 0:02:15]} 11. Bxa6 {[%clk 0:02:09]}  Nxa6 {[%clk 0:02:16]} 12. Qa4 {[%clk 0:02:05]}  Nc7 {[%clk 0:02:07]} 13. Nc6 {[%clk 0:01:42]}  Qd7 {[%clk 0:02:00]} 14. Nxb4 {[%clk 0:01:43]}  Qxa4 {[%clk 0:01:59]} 15. Nxa4 {[%clk 0:01:44]}  cxb4 {[%clk 0:01:59]} 16. Bd2 {[%clk 0:01:44]}  Rab8 {[%clk 0:01:42]} 17. Rac1 {[%clk 0:01:40]}  Nb5 {[%clk 0:01:38]} 18. Rfe1 {[%clk 0:01:28]}  a5 {[%clk 0:01:35]} 19. Rc6 {[%clk 0:01:28]}  Ne4 {[%clk 0:01:33]} 20. Bc1 {[%clk 0:01:23]}  Re6 {[%clk 0:01:28]} 21. Rc2 {[%clk 0:01:20]}  g6 {[%clk 0:01:22]} 22. Kf1 {[%clk 0:01:15]}  h5 {[%clk 0:01:21]} 23. a3 {[%clk 0:01:01]}  b3 {[%clk 0:01:14]} 24. Rce2 {[%clk 0:01:02]}  Rc8 {[%clk 0:01:12]} 25. Bd2 {[%clk 0:00:49]}  Rc2 {[%clk 0:01:06]} 26. Rd1 {[%clk 0:00:40]}  Rec6 {[%clk 0:00:59]} 27. Be1 {[%clk 0:00:40]}  R2c4 {[%clk 0:00:51]} 28. Nxb6 {[%clk 0:00:22]}  Rxb6 {[%clk 0:00:48]} 29. Bxa5 {[%clk 0:00:22]}  Rbc6 {[%clk 0:00:48]} 30. Rd3 {[%clk 0:00:22]}  Rc1+ {[%clk 0:00:34]} 31. Be1 {[%clk 0:00:22]}  R6c2 {[%clk 0:00:32]} 32. a4 {[%clk 0:00:08]}  Nbd6 {[%clk 0:00:31]} 33. a5 {[%clk 0:00:08]}  Ra1 {[%clk 0:00:29]} 34. Rxb3 {[%clk 0:00:05]}  Nd2+ {[%clk 0:00:28]} 35. Kf2 {[%clk 0:00:05]}  N6e4+ {[%clk 0:00:23]} 36. Kg1 {[%clk 0:00:00]}  Nxb3 {[%clk 0:00:23]} 0-1


[Site "https://www.chess.com"]

[Event "Titled Tuesday Blitz May 16 Late 2023"]
[White "Baskakov, Egor"]
[Black "Kim, Sergey"]
[WhiteFideId "24197866"]
[BlackFideId "13700570"]
[WhiteElo "2225"]
[BlackElo "2605"]
[Result "1/2-1/2"]
[Round "02"]
[TimeControl "180+2"]
[Date "2023.05.16"]
[WhiteClock "0:00:59"]
[BlackClock "0:00:37"]

1. e4 {[%clk 0:03:00]}  e5 {[%clk 0:03:00]} 2. Nc3 {[%clk 0:03:00]}  Nf6 {[%clk 0:02:59]} 3. g3 {[%clk 0:03:00]}  g6 {[%clk 0:02:59]} 4. Bg2 {[%clk 0:03:00]}  Bg7 {[%clk 0:02:59]} 5. Nge2 {[%clk 0:03:00]}  O-O {[%clk 0:02:59]} 6. d3 {[%clk 0:02:59]}  c6 {[%clk 0:02:59]} 7. O-O {[%clk 0:02:59]}  d5 {[%clk 0:02:57]} 8. exd5 {[%clk 0:03:00]}  cxd5 {[%clk 0:02:56]} 9. d4 {[%clk 0:03:00]}  e4 {[%clk 0:02:54]} 10. Bg5 {[%clk 0:03:00]}  h6 {[%clk 0:02:52]} 11. Bxf6 {[%clk 0:02:57]}  Bxf6 {[%clk 0:02:52]} 12. Nf4 {[%clk 0:02:58]}  Be6 {[%clk 0:02:45]} 13. Nxe6 {[%clk 0:02:50]}  fxe6 {[%clk 0:02:44]} 14. Qg4 {[%clk 0:02:50]}  Qe8 {[%clk 0:02:45]} 15. Ne2 {[%clk 0:02:44]}  h5 {[%clk 0:02:42]} 16. Qh3 {[%clk 0:02:43]}  Nc6 {[%clk 0:02:34]} 17. c3 {[%clk 0:02:43]}  Bg5 {[%clk 0:02:32]} 18. f3 {[%clk 0:02:38]}  e3 {[%clk 0:02:08]} 19. f4 {[%clk 0:02:37]}  Bf6 {[%clk 0:01:58]} 20. Rae1 {[%clk 0:02:36]}  Na5 {[%clk 0:01:50]} 21. Nc1 {[%clk 0:02:31]}  Nc4 {[%clk 0:01:49]} 22. b3 {[%clk 0:02:26]}  Nd2 {[%clk 0:01:48]} 23. Rxe3 {[%clk 0:02:26]}  Nxf1 {[%clk 0:01:47]} 24. Rxe6 {[%clk 0:02:26]}  Qd8 {[%clk 0:01:38]} 25. f5 {[%clk 0:01:49]}  Nd2 {[%clk 0:01:14]} 26. fxg6 {[%clk 0:01:48]}  Ne4 {[%clk 0:01:14]} 27. Qxh5 {[%clk 0:01:45]}  Qd7 {[%clk 0:01:14]} 28. Nd3 {[%clk 0:01:27]}  Rfe8 {[%clk 0:00:58]} 29. Rxf6 {[%clk 0:01:11]}  Nxf6 {[%clk 0:00:57]} 30. Qg5 {[%clk 0:01:12]}  Ne4 {[%clk 0:00:52]} 31. Qh5 {[%clk 0:01:00]}  Nf6 {[%clk 0:00:42]} 32. Qg5 {[%clk 0:00:59]}  Ne4 {[%clk 0:00:40]} 33. Qh5 {[%clk 0:00:59]}  Nf6 {[%clk 0:00:37]} 1/2-1/2


[Site "https://www.chess.com"]

[Event "Titled Tuesday Blitz May 16 Late 2023"]
[White "Fishbein, Alexander"]
[Black "Kramnik, Vladimir"]
[WhiteFideId "2000377"]
[BlackFideId "4101588"]
[WhiteElo "2415"]
[BlackElo "2703"]
[Result "1-0"]
[Round "02"]
[TimeControl "180+2"]
[Date "2023.05.16"]
[WhiteClock "0:00:30"]
[BlackClock "0:00:00"]

1. e4 {[%clk 0:03:00]}  c5 {[%clk 0:02:59]} 2. Nf3 {[%clk 0:03:00]}  e6 {[%clk 0:02:59]} 3. d4 {[%clk 0:02:59]}  cxd4 {[%clk 0:03:00]} 4. Nxd4 {[%clk 0:03:00]}  a6 {[%clk 0:03:00]} 5. Nc3 {[%clk 0:03:00]}  d6 {[%clk 0:02:58]} 6. a4 {[%clk 0:02:56]}  Nc6 {[%clk 0:02:56]} 7. Be2 {[%clk 0:02:55]}  Nf6 {[%clk 0:02:55]} 8. Be3 {[%clk 0:02:55]}  Be7 {[%clk 0:02:55]} 9. O-O {[%clk 0:02:55]}  O-O {[%clk 0:02:54]} 10. f4 {[%clk 0:02:55]}  Bd7 {[%clk 0:02:54]} 11. Nb3 {[%clk 0:02:53]}  Na5 {[%clk 0:02:48]} 12. e5 {[%clk 0:02:46]}  Ne8 {[%clk 0:02:48]} 13. Nxa5 {[%clk 0:02:30]}  Qxa5 {[%clk 0:02:47]} 14. Ne4 {[%clk 0:02:29]}  Qc7 {[%clk 0:02:36]} 15. a5 {[%clk 0:02:26]}  Bc6 {[%clk 0:02:24]} 16. Bb6 {[%clk 0:02:19]}  Qd7 {[%clk 0:02:24]} 17. Bf3 {[%clk 0:02:16]}  Bxe4 {[%clk 0:02:19]} 18. Bxe4 {[%clk 0:02:15]}  g6 {[%clk 0:02:16]} 19. c4 {[%clk 0:02:08]}  f5 {[%clk 0:01:50]} 20. Bf3 {[%clk 0:02:00]}  Rc8 {[%clk 0:01:47]} 21. exd6 {[%clk 0:01:47]}  Bxd6 {[%clk 0:01:46]} 22. c5 {[%clk 0:01:41]}  Rxc5 {[%clk 0:01:22]} 23. Bxc5 {[%clk 0:01:41]}  Bxc5+ {[%clk 0:01:22]} 24. Kh1 {[%clk 0:01:41]}  Qe7 {[%clk 0:01:07]} 25. Qb3 {[%clk 0:01:39]}  Rf7 {[%clk 0:01:03]} 26. Rfe1 {[%clk 0:01:37]}  Ng7 {[%clk 0:01:01]} 27. Bd5 {[%clk 0:01:36]}  Rf6 {[%clk 0:00:39]} 28. Qxb7 {[%clk 0:01:34]}  Kf7 {[%clk 0:00:33]} 29. Qxe7+ {[%clk 0:01:33]}  Kxe7 {[%clk 0:00:28]} 30. Bc4 {[%clk 0:01:33]}  Bb4 {[%clk 0:00:24]} 31. Red1 {[%clk 0:01:29]}  Nh5 {[%clk 0:00:23]} 32. g3 {[%clk 0:01:29]}  e5 {[%clk 0:00:23]} 33. fxe5 {[%clk 0:01:26]}  Rc6 {[%clk 0:00:22]} 34. Rac1 {[%clk 0:01:25]}  Bxa5 {[%clk 0:00:20]} 35. Be2 {[%clk 0:01:21]}  Rxc1 {[%clk 0:00:19]} 36. Rxc1 {[%clk 0:01:21]}  Ng7 {[%clk 0:00:18]} 37. Bxa6 {[%clk 0:01:20]}  Ne6 {[%clk 0:00:17]} 38. Bc4 {[%clk 0:01:18]}  Nd4 {[%clk 0:00:17]} 39. Ra1 {[%clk 0:01:15]}  Bb6 {[%clk 0:00:16]} 40. Ra6 {[%clk 0:01:14]}  Bc5 {[%clk 0:00:17]} 41. Ra8 {[%clk 0:01:05]}  g5 {[%clk 0:00:14]} 42. Rh8 {[%clk 0:01:03]}  f4 {[%clk 0:00:12]} 43. gxf4 {[%clk 0:01:04]}  gxf4 {[%clk 0:00:11]} 44. Rxh7+ {[%clk 0:01:04]}  Kd8 {[%clk 0:00:11]} 45. e6 {[%clk 0:00:56]}  Be7 {[%clk 0:00:10]} 46. Rf7 {[%clk 0:00:53]}  f3 {[%clk 0:00:10]} 47. Bd5 {[%clk 0:00:51]}  Ke8 {[%clk 0:00:09]} 48. Bxf3 {[%clk 0:00:48]}  Nxe6 {[%clk 0:00:09]} 49. Bh5 {[%clk 0:00:44]}  Kd8 {[%clk 0:00:09]} 50. Bg4 {[%clk 0:00:42]}  Ng5 {[%clk 0:00:09]} 51. Rg7 {[%clk 0:00:40]}  Ne4 {[%clk 0:00:08]} 52. Kg2 {[%clk 0:00:39]}  Bf6 {[%clk 0:00:08]} 53. Rb7 {[%clk 0:00:38]}  Nc5 {[%clk 0:00:07]} 54. Rb5 {[%clk 0:00:37]}  Ne4 {[%clk 0:00:05]} 55. b3 {[%clk 0:00:36]}  Ke7 {[%clk 0:00:05]} 56. Rb7+ {[%clk 0:00:35]}  Kd6 {[%clk 0:00:04]} 57. Rb6+ {[%clk 0:00:35]}  Ke5 {[%clk 0:00:04]} 58. Re6+ {[%clk 0:00:34]}  Kf4 {[%clk 0:00:00]} 59. Bf3 {[%clk 0:00:30]} 1-0


[Site "https://www.chess.com"]